Workbook

Sheet Formularz
B2: Kalkulator opracowany dla Jednostek Samorządów Terytorialnych, pozwalający oszacować poglądowe koszty Programu Polityki Zdrowotnej
C4: Nazwa jednostki samorządowej | D4: Kraków | E4: =IF(D4="",0,1) -> 1
C6: Liczba osób zaplanowana do zaszczepienia | D6: 200 | E6: =IF(D6="",0,1) -> 1
C8: Interwencja | D8: Półpasiec dorośli, 2 dawki
C10: Koszty jednostkowe związane z wykonaniem szczepienia:
C12: Koszt zakupu szczepionki | D12: Uśredniona cena rynkowa
D14: 751.06 | E14: =IF(D14="",0,1) -> 1
C16: Koszt kwalifikacji do szczepienia | D16: Zarządzenie NFZ
D18: 0 | E18: =IF(D18="",0,1) -> 1
C20: Koszt jednostkowy podania szczepionki | D20: Zarządzenie NFZ
D22: 31.67 | E22: =IF(D22="",0,1) -> 1
C25: Koszty administracyjne | D25: 0.02
E27: =IF(D27="",0,1) -> 0
C29: Koszty promocji/edukacji | D29: 0.05
E31: =IF(D31="",0,1) -> 0
C33: Koszty monitorowania i ewaluacji programu | D33: 0.05
E35: =IF(D35="",0,1) -> 0

Sheet Wyniki
B2: ="Kosztorys szczepień przeciw "&VLOOKUP(MATCH(Formularz!D8,Wyniki!B43:B50,0),Wyniki!F43:G50,2,FALSE)&" dla jednostki samorządowej "&nazwa_js -> Kosztorys szczepień przeciw półpaścowi dla jednostki samorządowej Kraków
C4: ROK | D4: Roczne koszty
C6: Liczba uczestników | D6: =populacja -> 200
C7: Koszty szczepień | D7: =D6*D14 -> 313092
C8: Koszty administracyjne | D8: =C47*(D7/(1-SUM($C$47:$E$47))) -> 7115.727273
C9: Koszty promocji/edukacji | D9: =D47*(D7/(1-SUM($C$47:$E$47))) -> 17789.31818
C10: Koszty monitorowania i ewaluacji | D10: =E47*(D7/(1-SUM($C$47:$E$47))) -> 17789.31818
C11: Całkowity koszt | D11: =SUM(D7:D10) -> 355786.3636
C13: Średni koszt 1. uczestnika
C14: Koszty szczepienia na 1. uczestnika | D14: =VLOOKUP(Formularz!D8,Wyniki!$B$57:$P$64,Wyniki!M55,FALSE) -> 1565.46
C15: Koszty administracyjne na 1. uczestnika | D15: =D8/$D$6 -> 35.57863636
C16: Koszty promocji/edukacji na 1. uczestnika | D16: =D9/$D$6 -> 88.94659091
C17: Koszty monitorowania i ewaluacji na 1. uczestnika | D17: 88.94659091
C18: Średni koszt 1. uczestnika | D18: =SUM(D14,D15,D16,D17) -> 1778.931818
B42: Rodzaj interwencji | C42: Koszty administracyjne w danym roku | D42: Koszty promocji/edukacji | E42: Koszty monitorowania i ewaluacji programu | F42: L.p. | G42: Odmiana rodzaju interwencji | H42: Koszt podania | I42: Koszt kwalifikacji | J42: Zakup szczepionki | K42: Wybór podanie | L42: Wybór kwalifikacja
B43: =Wyniki!B57 -> Pneumokoki dorośli, 1 dawka | C43: 0.02 | D43: 0.05 | E43: 0.02 | F43: 1 | G43: pneumokokom | H43: Zarządzenie NFZ | I43: Zarządzenie NFZ | J43: Uśredniona cena rynkowa | K43: 31.67 | L43: 0
B44: =Wyniki!B58 -> Kleszczowe zapalenia mózgu dorośli, 3 dawki | C44: 0.05 | D44: 0.1 | E44: 0.05 | F44: 2 | G44: kleszczowemu zapaleniu mózgu | H44: Średnia wartość kosztu podania - przykładowe raporty końcowe | I44: Średnia wartość kosztu kwalifikacji - przykładowe raporty końcowe | J44: Wartość użytkownika | K44: =E80 -> 15 | L44: =E81 -> 84.25
B45: =Wyniki!B59 -> Meningokoki ACWY dorośli, 1 dawka | C45: 0.1 | D45: 0.15 | E45: 0.1 | F45: 3 | G45: meningokokom ACWY | H45: Maksymalna wartość kosztu podania - przykładowe raporty końcowe | I45: Maksymalna wartość kosztu kwalifikacji - przykładowe raporty końcowe | K45: =D80 -> 20 | L45: =D81 -> 100
B46: =Wyniki!B60 -> Meningokoki B dorośli, 2 dawki | C46: Wartość użytkownika | D46: Wartość użytkownika | E46: Wartość użytkownika | F46: 4 | G46: meningokokom B | H46: Wartość użytkownika | I46: Wartość użytkownika
B47: =Wyniki!B61 -> Grypa dorośli, 1 dawka | C47: =IF(k_admin=Wyniki!$C$46,k_admin_val,k_admin) -> 0.02 | D47: =IF(k_prom=Wyniki!$D$46,k_prom_val,k_prom) -> 0.05 | E47: =IF(k_monit=Wyniki!$E$46,k_monit_val,k_monit) -> 0.05 | F47: 5 | G47: grypie | H47: =MATCH(k_podania_ust,H43:H46,) -> 1 | I47: =MATCH(k_kwalif_ust,I43:I46,) -> 1 | J47: =MATCH(k_jedn,J43:J44,) -> 1
B48: =Wyniki!B62 -> HPV dorośli, 3 dawki | F48: 6 | G48: wirusowi HPV | K48: =CHOOSE(H47,K43,K44,K45) -> 31.67 | L48: =CHOOSE(I47,L43,L44,L45) -> 0
B49: =Wyniki!B63 -> Półpasiec dorośli, 2 dawki | F49: 7 | G49: półpaścowi
B50: RSV (syncytialny wirus oddechowy) dorośli, 1 dawka | F50: 8 | G50: wirusowi RSV
B51: =CHOOSE(MATCH(Formularz!D8,Wyniki!B43:B50,0),Wyniki!E57,Wyniki!E58,Wyniki!E59,Wyniki!E60,Wyniki!E61,Wyniki!E62,Wyniki!E63,E64) -> 751.06
A55: Obliczenia | B55: 1 | C55: 2 | D55: 3 | E55: 4 | F55: 5 | G55: 6 | H55: 7 | I55: 8 | J55: 9 | K55: 10 | L55: 11 | M55: 12
B56: Rodzaj interwencji | C56: Refundacja | D56: Schemat szczepienia | E56: Koszt za dawkę | F56: Cena detaliczna GSK | G56: Cena detaliczna inne firmy | H56: Cena detaliczna refundacja | I56: Dopłata pacjenta | J56: Koszt podania szczepionki | K56: Koszt pełnego szczepienia | L56: Koszt kwalifikacji | M56: Koszt szczepienia (szczepionka + podanie + kwalfikacja) | N56: Źródło: Cena detaliczna inne firmy | O56: Uwagi | P56: Liczba dawek
B57: Pneumokoki dorośli, 1 dawka | C57: 50% odpłatności po 65 r.ż. ze zwiększonym (umiarkowanym do wysokiego) ryzykiem choroby pneumokokowi | D57: 1 dawki szczepionki skoniugowanej PCV13 (Prevenar13) oraz 1 dawki szczepionki polisacharydowej PPSV23 (Pneumovax23) | E57: =IF(AND(k_jedn=Wyniki!$J$44,Interwencja=Wyniki!B57),k_szczep,AVERAGE(H57,G57)) -> 225.805 | G57: =AVERAGE(142.99,199.99) -> 171.49 | H57: =M85 -> 280.12 | I57: =R85 -> 140.06 | J57: =CHOOSE($H$47,$K$43,$K$44,$K$45,Formularz!$D$22)*P57 -> 31.67 | K57: =E57*P57 -> 225.805 | L57: =CHOOSE($I$47,$L$43,$L$44,$L$45,Formularz!$D$18)*P57 -> 0 | M57: =IF($H$47=$H$46,(k_szczep+k_jedn_val+k_kwalif)*P57,SUM(J57,K57,L57)) -> 257.475 | N57: https://www.gdziepolek.pl/produkty/62574/pneumovax-23-iniekcja/apteki | P57: 1
B58: Kleszczowe zapalenia mózgu dorośli, 3 dawki | C58: brak | D58: 3 dawki szczepienia pierwotnego + dawki przypominające co 3-5 lat | E58: =IF(AND(k_jedn=Wyniki!$J$44,Interwencja=Wyniki!B58),k_szczep,G58) -> 162.605 | G58: =AVERAGE(84.99,240.22) -> 162.605 | J58: =CHOOSE($H$47,$K$43,$K$44,$K$45,Formularz!$D$22)*P58 -> 95.01 | K58: =E58*P58 -> 487.815 | L58: =CHOOSE($I$47,$L$43,$L$44,$L$45,Formularz!$D$18)*P58 -> 0 | M58: =IF($H$47=$H$46,(k_szczep+k_jedn_val+k_kwalif)*P58,SUM(J58,K58,L58)) -> 582.825 | N58: https://www.gdziepolek.pl/produkty/31580/fsme-immun-0-5-ml-iniekcja/apteki | P58: 3
B59: Meningokoki ACWY dorośli, 1 dawka | C59: brak | D59: Szczepionka Nimenrix: 1 dawka | E59: =IF(AND(k_jedn=Wyniki!$J$44,Interwencja=Wyniki!B59),k_szczep,G59) -> 259.99 | G59: =AVERAGE(169.99,349.99) -> 259.99 | J59: =CHOOSE($H$47,$K$43,$K$44,$K$45,Formularz!$D$22)*P59 -> 31.67 | K59: 259.99 | L59: =CHOOSE($I$47,$L$43,$L$44,$L$45,Formularz!$D$18)*P59 -> 0 | M59: 291.66 | N59: https://www.gdziepolek.pl/produkty/53353/nimenrix-iniekcja/apteki | P59: 1
B60: Meningokoki B dorośli, 2 dawki | C60: brak | D60: Szczepionka Bexsero (GSK): 2 dawki w odstępie co najmniej 1 mies. | E60: =IF(AND(k_jedn=Wyniki!$J$44,Interwencja=Wyniki!B60),k_szczep,F60) -> 579.115 | F60: =AVERAGE(324.98,833.25) -> 579.115 | J60: =CHOOSE($H$47,$K$43,$K$44,$K$45,Formularz!$D$22)*P60 -> 63.34 | K60: 1158.23 | L60: =CHOOSE($I$47,$L$43,$L$44,$L$45,Formularz!$D$18)*P60 -> 0 | M60: 1221.57 | P60: 2
B61: Grypa dorośli, 1 dawka | C61: 50% odpłatności, po 75 r.ż. za darmo | D61: 1 dawka szczepionki Fluarix Tetra (GSK) na sezon | E61: =IF(AND(k_jedn=Wyniki!$J$44,Interwencja=Wyniki!B61),k_szczep,AVERAGE(H61,F61)) -> 65.3675 | F61: 77.76 | H61: =AVERAGE(M84,M88) -> 52.975 | I61: =AVERAGE(R84,R88) -> 26.49 | J61: =CHOOSE($H$47,$K$43,$K$44,$K$45,Formularz!$D$22)*P61 -> 31.67 | K61: =E61*P61 -> 65.3675 | L61: =CHOOSE($I$47,$L$43,$L$44,$L$45,Formularz!$D$18)*P61 -> 0 | M61: 97.0375 | O61: Szczepionka GSK nie jest już refundowana | P61: 1
B62: HPV dorośli, 3 dawki | C62: 50% odpłatności | D62: Cervarix (GSK): Osoby ≥15 lat. 3 dawki po 0,5 ml, zgodnie ze schematem 0, 1, 6 mies. | E62: =IF(AND(k_jedn=Wyniki!$J$44,Interwencja=Wyniki!B62),k_szczep,AVERAGE(H62,F62)) -> 278.78 | F62: =H62 -> 278.78 | H62: =N87 -> 278.78 | I62: =R87 -> 139.39 | J62: =CHOOSE($H$47,$K$43,$K$44,$K$45,Formularz!$D$22)*P62 -> 95.01 | K62: =E62*P62 -> 836.34 | L62: =CHOOSE($I$47,$L$43,$L$44,$L$45,Formularz!$D$18)*P62 -> 0 | M62: =IF($H$47=$H$46,(k_szczep+k_jedn_val+k_kwalif)*P62,SUM(J62,K62,L62)) -> 931.35 | P62: 3
B63: Półpasiec dorośli, 2 dawki | C63: 50% odpłatności po 65 r.ż. o zwiększonym ryzyku zachorowania na półpasiec | D63: Shingrix (GSK): 2 dawki, druga dawka podana po 2 mies. | E63: =IF(AND(k_jedn=Wyniki!$J$44,Interwencja=Wyniki!B63),k_szczep,AVERAGE(H63,F63)) -> 751.06 | F63: =H63 -> 751.06 | H63: =N86 -> 751.06 | I63: =R86 -> 375.53 | J63: =CHOOSE($H$47,$K$43,$K$44,$K$45,Formularz!$D$22)*P63 -> 63.34 | K63: =E63*P63 -> 1502.12 | L63: =CHOOSE($I$47,$L$43,$L$44,$L$45,Formularz!$D$18)*P63 -> 0 | M63: 1565.46 | P63: 2
B64: RSV (syncytialny wirus oddechowy) dorośli, 1 dawka | D64: Arexvy 1 dawka | E64: =IF(AND(k_jedn=Wyniki!$J$44,Interwencja=Wyniki!B64),k_szczep,AVERAGE(H64,F64)) -> 1099 | F64: 1099 | J64: =CHOOSE($H$47,$K$43,$K$44,$K$45,Formularz!$D$22)*P64 -> 31.67 | K64: =E64*P64 -> 1099 | L64: =CHOOSE($I$47,$L$43,$L$44,$L$45,Formularz!$D$18)*P64 -> 0 | M64: =IF($H$47=$H$46,(k_szczep+k_jedn_val+k_kwalif)*P64,SUM(J64,K64,L64)) -> 1130.67 | P64: 1
B66: Przykładowe projekty końcowe PPZ
B67: Wskazanie | D67: Grypa | E67: Grypa | F67: HPV | G67: HPV | H67: HPV | I67: Meningokoki
B68: Okres realizacji | D68: 16.04.2018 - 30.11.2020 | E68: 03.2021 - 12.20221 | F68: 28.04.2021 - 31.12.2021 | G68: 6.12.2016 - 31.12.2018 | H68: 2022 - 2023 | I68: 09.2020 - 11.2022
B69: Koszt zakupu 1 szczepionki | D69: =(40*21+35)/22 -> 39.77272727 | E69: 40.19 | F69: 215 | G69: 224.34 | H69: 500
B70: Kwalifikacji do szczepienia | E70: 20 | I70: 68.5
B71: Kwalifikacja do podania szczepionki | E71: 20
B72: Działania edukacyjne | E72: 18 | H72: 195
B73: Kwalifikacji do programu | H73: 100 | I73: 26
B74: Wykonanie szczepienia wraz z jedną dawką | I74: 355.1
B75: Konsultacja lekarska | H75: 100
B76: Praca personelu pielęgniarskiego | H76: 10
E77: =E70+E71 -> 40 | H77: =H75+H76 -> 110 | I77: =I70+I73 -> 94.5
B78: Projekty końcowe PPZ - podsumowanie
D79: max | E79: średnia
B80: Koszt podania szczepionki | D80: =E71 -> 20 | E80: =AVERAGE(E71,H76) -> 15
B81: Koszt kwalifikacji do szczepienia | D81: =H75 -> 100 | E81: =AVERAGE(H75,I70) -> 84.25
B82: Refundacja
B83: LP | C83: Substancja czynna | D83: Nazwa postać i dawka | E83: Zawartość opakowania | F83: Numer GTIN lub inny kod jednoznacznie identyfikujący produkt | G83: Termin wejścia w życie decyzji | H83: Okres obowiązywania decyzji | I83: Grupa limitowa | J83: Cena zbytu netto | K83: Urzędowa cena zbytu | L83: Cena hurtowa brutto | M83: Cena detaliczna | N83: Wysokość limitu finansowania | O83: Zakres wskazań objętych refundacją | P83: Zakres wskazań pozarejestracyjnych objętych refundacją | Q83: Poziom odpłatności | R83: Wysokość dopłaty świadczeniobiorcy
B84: 959 | C84: Czterowalentna szczepionka przeciw grypie (rozszczepiony wirion), inaktywowana | D84: VaxigripTetra, zawiesina do wstrzykiwań w ampułko-strzykawce, 1 dawka | E84: 1 amp.-strzyk. 0,5 ml z igłą | F84: 05909991302108 | G84: 2023-11-01 | H84: 2 lata | I84: 247.0, Szczepionki przeciw grypie | J84: 38,00 | K84: 41,04 | L84: 43,50 | M84: 53.2 | N84: 53.2 | O84: We wszystkich zarejestrowanych wskazaniach na dzień wydania decyzji; | Q84: 50% | R84: 26.6
B85: 3542 | C85: Szczepionka przeciw pneumokokom sacharydowa, skoniugowana, adsorbowana (13-walentna) | D85: Prevenar 13, zawiesina do wstrzykiwań, 0.5 ml | E85: 1 amp.-strzyk. + 1 igła | F85: 05909990737420 | G85: 2024-01-01 | H85: 2 lata | I85: 255.0, Szczepionki przeciw pneumokokom | J85: 227,13 | K85: 245,30 | L85: 260,02 | M85: 280.12 | N85: 280.12 | O85: Profilaktyka osób powyżej 65 r.ż. ze zwiększonym (umiarkowanym do wysokiego) ryzykiem choroby pneumokokowej tj. z: przewlekłą chorobą serca, przewlekłą chorobą wątroby, przewlekłą chorobą płuc, cukrzycą, implantem ślimakowym, wyciekiem płynu mózgowo-rdzeniowego, wrodzoną lub nabytą asplenią, niedokrwistością sierpowatą i innymi hemoglobinopatiami, przewlekłą niewydolnością nerek, wrodzonym lub nabytym niedoborem odporności, uogólnioną choroba nowotworową, zakażeniem wirusem HIV, chorobą Hodgkina, jatrogenną immunosupresją, białaczką, szpiczakiem mnogim, przeszczepem narządu litego | Q85: 50% | R85: 140.06
B86: 3543 | C86: Szczepionka przeciw półpaścowi (rekombinowana, z adiuwantem) | D86: Shingrix, proszek i zawiesina do sporządzania zawiesiny do wstrzykiwań, 50 µg | E86: 1 fiol. proszku + 1 fiol. 0,5 ml zawiesiny | F86: 05909991364885 | G86: 2024-01-01 | H86: 2 lata | I86: 269.0, Szczepionki przeciw półpaścowi | J86: 628,00 | K86: 678,24 | L86: 718,93 | M86: 751.06 | N86: 751.06 | O86: Profilaktyka półpaśca i neuralgii półpaścowej u pacjentów w wieku 65 lat i starszych o zwiększonym ryzyku zachorowania na półpasiec tj. z: przewlekłą chorobą serca, przewlekłą chorobą płuc, cukrzycą, przewlekłą niewydolnością nerek, wrodzonym lub nabytym niedoborem odporności, uogólnioną chorobą nowotworową, zakażeniem wirusem HIV, chorobą Hodgkina, jatrogenną immunosupresją, białaczką, szpiczakiem mnogim, przeszczepem narządu litego, reumatoidalnym zapaleniem stawów, łuszczycą, łuszczycowym zapaleniem stawów, nieswoistym zapaleniem jelit, zesztywniającym zapaleniem stawów kręgosłupa, stwardnieniem rozsianym, toczniem układowym. | Q86: 50% | R86: 375.53
B87: 3544 | C87: Szczepionka przeciw wirusowi brodawczaka ludzkiego [typy 16 i 18] (rekombinowana, z adiuwantem, adsorbowana) | D87: Cervarix, zawiesina do wstrzykiwań, 20+20 µg | E87: 1 amp.-strz. | F87: 05909990064748 | G87: 2023-11-01 | H87: 2 lata | I87: 254.0, Szczepionki przeciwko wirusowi brodawczaka ludzkiego (HPV) | J87: 226,00 | K87: 244,08 | L87: 258,72 | M87: 278.78 | N87: 278.78 | O87: We wszystkich zarejestrowanych wskazaniach na dzień wydania decyzji | Q87: 50% | R87: 139.39
B88: 3979 | C88: Vaccinum influenzae inactivatum ex corticis antigeniis praeparatum (szczepionka przeciw grypie (antygen powierzchniowy), inaktywowana) | D88: Influvac Tetra, zawiesina do wstrzykiwań w ampułko-strzykawce | E88: 1 amp.-strzyk. 0,5 ml z igłą | F88: 05909991347352 | G88: 2023-07-01 | H88: 2 lata | I88: 247.0, Szczepionki przeciw grypie | J88: 37,60 | K88: 40,61 | L88: 43,05 | M88: 52.75 | N88: 52.75 | O88: We wszystkich zarejestrowanych wskazaniach na dzień wydania decyzji | Q88: 50% | R88: 26.38
